bitfinex-derivatives/quotes_SOLF0:USTF0_20250228
["timestamp","ask_amount","ask_price","bid_price","bid_amount"]
[1740756510418,17.04133354,146.85,146.79,17.72]
[1740756510720,17.04133354,146.85,146.81,0.04538398]
[1740756510919,217.96,146.91,146.83,6.8114]
[1740756511118,17.04133354,146.88,146.81,0.04538398]
[1740756511320,17.04133354,146.88,146.8,26.24040008]
[1740756511321,17.04133354,146.88,146.84,6.8111]
[1740756511523,17.04133354,146.87,146.83,0.04768571]
[1740756511717,17.04133354,146.86,146.83,0.04768571]
[1740756512819,17.04133354,146.85,146.83,0.04768571]
[1740756513019,17.04133354,146.84,146.83,0.04768571]
[1740756517221,235.66,146.91,146.83,0.04768571]
[1740756517421,217.96,146.91,146.83,0.04768571]
[1740756517623,17.04133354,146.86,146.83,0.04768571]
[1740756518124,217.96,146.91,146.83,6.85908571]
[1740756518325,17.04133354,146.87,146.83,0.04768571]
[1740756518825,217.96,146.91,146.83,0.04768571]
[1740756519024,17.04133354,146.88,146.83,0.04768571]
[1740756519526,217.96,146.91,146.83,0.04768571]
[1740756519527,17.04133354,146.87,146.83,0.04768571]
[1740756519727,17.04133354,146.87,146.83,15.41068579]
[1740756519922,217.96,146.91,146.83,0.04768571]
[1740756520122,17.04133354,146.88,146.83,0.04768571]
[1740756520325,17.04133354,146.89,146.83,0.04768571]
[1740756520525,17.04133354,146.88,146.83,0.04768571]
[1740756520925,6.809,146.89,146.85,6.8105]
[1740756521125,17.04133354,146.88,146.85,6.8105]
[1740756521329,17.04133354,146.88,146.86,0.04840679]
[1740756521628,217.96,146.91,146.82,15.36300008]
[1740756521826,17.04133354,146.89,146.83,15.36300008]
[1740756522027,23.85033354,146.89,146.85,6.86192062]
[1740756522227,17.04133354,146.88,146.85,0.05152062]
[1740756522427,23.85173354,146.86,146.85,0.05152062]
[1740756522627,23.85173354,146.86,146.85,2.062e-05]
[1740756524233,17.04133354,146.86,146.85,2.062e-05]
[1740756524528,0.0498341,146.87,146.85,2.062e-05]
[1740756524729,17.09116764,146.87,146.85,2.062e-05]
[1740756525227,0.0498341,146.87,146.85,2.062e-05]
[1740756525431,0.0498341,146.87,146.86,6.8104]
[1740756526023,0.0498341,146.87,146.85,2.062e-05]
[1740756527229,0.0498341,146.87,146.86,6.8104]
[1740756527829,0.0498341,146.87,146.85,6.81072062]
[1740756528029,0.0498341,146.87,146.85,2.062e-05]
[1740756528435,0.0498341,146.87,146.86,6.8104]
[1740756528933,0.0498341,146.87,146.85,2.062e-05]
[1740756529129,0.0498341,146.87,146.85,6.81072062]
[1740756529333,0.0498341,146.87,146.85,2.062e-05]
[1740756529529,0.0498341,146.87,146.86,6.8104]
[1740756530635,0.0498341,146.87,146.85,2.062e-05]
[1740756531230,217.96,146.91,146.85,2.062e-05]
[1740756531428,17.04133354,146.91,146.85,2.062e-05]
[1740756531827,17.04133354,146.91,146.89,6.8086]
[1740756532025,17.04133354,146.91,146.86,15.36300008]
[1740756532437,17.04133354,146.91,146.87,0.04653492]
[1740756532633,17.04133354,146.91,146.87,15.409535]
[1740756532935,17.04133354,146.91,146.89,6.8087]
[1740756533128,217.96,146.98,146.87,0.04653492]
[1740756533329,17.04133354,146.91,146.87,15.36300008]
[1740756533526,17.04133354,146.91,146.85,18.81380008]
[1740756533730,6.8079,146.92,146.88,0.05103931]
[1740756533929,17.04133354,146.93,146.86,15.36300008]
[1740756534129,23.84873354,146.93,146.89,0.04977415]
[1740756534532,17.04133354,146.93,146.89,0.04977415]
[1740756535132,217.96,146.98,146.89,0.04977415]
[1740756535337,23.84943354,146.91,146.86,15.36300008]
[1740756535539,23.84943354,146.91,146.87,6.8096]
[1740756535739,17.04133354,146.91,146.87,0.05094715]
[1740756535941,17.04133354,146.91,146.88,6.8094]
[1740756536134,17.04133354,146.91,146.87,0.05094715]
[1740756536335,217.96,146.98,146.87,0.05094715]
[1740756536537,17.04133354,146.93,146.88,15.36300008]
[1740756536739,17.04133354,146.95,146.91,0.04402139]
[1740756537038,17.04133354,146.95,146.86,3.8042]
[1740756537039,17.04133354,146.95,146.94,6.8067]
[1740756537246,17.04133354,146.95,146.89,15.36300008]
[1740756537542,17.04133354,146.95,146.93,0.05035301]
[1740756537742,17.04133354,146.95,146.88,15.36300008]
[1740756537942,17.04133354,146.95,146.93,0.04701236]
[1740756538144,217.96,146.98,146.93,0.0453863]
[1740756538340,17.04133354,146.96,146.93,0.0453863]
[1740756539843,23.84733354,146.96,146.93,6.8523863]
[1740756540042,17.04133354,146.95,146.93,6.8523863]
[1740756540344,6.8067,146.94,146.93,0.0453863]
[1740756541644,17.04133354,146.94,146.93,0.0453863]
[1740756547044,17.04133354,146.94,146.87,7.0077]
[1740756547243,17.66,146.97,146.86,6.8099]
[1740756547244,17.04133354,146.88,146.86,6.8099]
[1740756547444,17.04133354,146.87,146.82,6.904]
[1740756547649,17.04133354,146.86,146.85,6.8105]
[1740756548050,0.04402409,146.87,146.85,6.8105]
[1740756548247,17.04133354,146.86,146.85,6.8105]
[1740756548446,17.04133354,146.86,146.85,6.85810472]
[1740756548649,0.0470522,146.87,146.85,0.04760472]
[1740756548845,17.04133354,146.86,146.85,0.04760472]
[1740756549847,17.04133354,146.86,146.85,6.85840472]
[1740756550149,0.0470522,146.87,146.85,6.85840472]
[1740756550348,17.08838574,146.87,146.85,6.85840472]
[1740756550547,17.08838574,146.87,146.85,0.04760472]
[1740756550850,17.08838574,146.87,146.86,6.8104]
[1740756552048,0.0470522,146.87,146.86,6.8104]
[1740756555344,0.0470522,146.87,146.86,22.17340008]
[1740756555950,6.8073,146.93,146.86,15.36300008]
[1740756556148,17.04133354,146.91,146.86,15.36300008]
[1740756556351,17.04133354,146.91,146.83,15.36300008]
[1740756556552,17.04133354,146.91,146.9,6.8085]
[1740756557546,6.807,146.94,146.89,0.04777041]
[1740756557851,17.04133354,146.92,146.89,0.04777041]
[1740756558446,17.04133354,146.92,146.91,6.8081]
[1740756558648,17.04133354,146.92,146.89,0.04777041]
[1740756558845,17.04133354,146.92,146.9,6.8085]
[1740756559053,6.8069,146.94,146.89,0.04777041]
[1740756559247,17.04133354,146.93,146.89,15.41077049]
[1740756559447,17.04133354,146.94,146.9,15.36300008]
[1740756559646,17.04133354,146.96,146.91,15.36300008]
[1740756559849,17.04133354,146.95,146.91,22.66770008]
[1740756560048,17.04133354,146.95,146.92,0.04652019]
[1740756560449,17.04133354,146.95,146.93,6.8071]
[1740756560647,17.04133354,146.94,146.92,0.04652019]
[1740756560849,17.04133354,146.93,146.92,0.04652019]
[1740756561044,23.84843354,146.93,146.92,0.04652019]
[1740756561358,23.84843354,146.93,146.92,2.019e-05]
[1740756561656,27.24843354,146.93,146.92,2.019e-05]
[1740756562851,17.04133354,146.93,146.92,2.019e-05]
[1740756563951,23.84843354,146.93,146.92,2.019e-05]
[1740756564153,17.04133354,146.93,146.92,2.019e-05]
[1740756567455,23.84843354,146.93,146.92,2.019e-05]
[1740756568356,17.04133354,146.93,146.92,2.019e-05]
[1740756569254,23.84843354,146.93,146.92,2.019e-05]
[1740756569855,17.04133354,146.93,146.92,2.019e-05]
[1740756570758,23.84843354,146.93,146.92,2.019e-05]
[1740756571261,17.04133354,146.93,146.92,2.019e-05]
[1740756571656,0.0465,146.94,146.92,2.019e-05]
[1740756573363,17.04133354,146.93,146.92,2.019e-05]
[1740756573863,0.0465,146.94,146.92,2.019e-05]
[1740756574065,17.04133354,146.93,146.92,2.019e-05]
[1740756574561,0.0465,146.94,146.92,2.019e-05]
[1740756574864,17.04133354,146.93,146.92,2.019e-05]
[1740756575260,0.0465,146.94,146.92,2.019e-05]
[1740756575460,17.04133354,146.93,146.92,2.019e-05]
[1740756575965,0.0465,146.94,146.92,15.42861306]
[1740756576164,17.08783354,146.94,146.92,2.019e-05]
[1740756576360,17.08783354,146.94,146.93,15.42919756]
[1740756576562,17.04133354,146.93,146.92,2.019e-05]
[1740756579259,23.84843354,146.93,146.92,2.019e-05]
[1740756580468,27.24843354,146.93,146.92,2.019e-05]
[1740756580662,6.8111,146.85,146.81,15.45540168]
[1740756580867,17.04131335,146.83,146.82,15.45540168]
[1740756581069,17.04131335,146.83,146.8,37.71644158]
[1740756581070,17.04131335,146.83,146.81,15.45540168]
[1740756581263,17.6,146.9,146.82,15.45540168]
[1740756581463,17.04131335,146.85,146.8,37.71644158]
[1740756581662,17.04131335,146.84,146.81,22.30624706]
[1740756581971,17.04131335,146.84,146.82,15.45049096]
[1740756582170,17.08783354,146.84,146.81,22.30470559]
[1740756582373,17.08783354,146.84,146.81,6.85869719]
[1740756582572,0.04652019,146.84,146.83,6.8118]
[1740756582766,0.04652019,146.84,146.83,22.2562672]
[1740756582968,13.6121,146.96,146.83,15.4444672]
[1740756583167,17.04131335,146.88,146.84,15.4444672]
[1740756583363,17.04131335,146.88,146.8,55.31644158]
[1740756583364,17.04131335,146.89,146.85,15.4444672]
[1740756583566,17.04131335,146.89,146.8,27.02626282]
[1740756583873,17.04131335,146.85,146.81,15.43462643]
[1740756584074,17.04131335,146.85,146.82,15.43462643]
[1740756584277,17.04131335,146.85,146.82,0.05209629]
[1740756584476,17.04131335,146.83,146.82,0.05209629]
[1740756584676,17.04131335,146.83,146.82,15.49864437]
[1740756585067,17.6,146.94,146.82,0.05209629]
[1740756585267,17.04131335,146.84,146.83,15.44546222]
[1740756585571,17.04131335,146.84,146.82,0.04391473]
[1740756585872,17.04131335,146.84,146.8,6.8128]
[1740756586171,17.04131335,146.84,146.82,0.05149536]
[1740756586377,17.04131335,146.82,146.78,22.25601486]
[1740756586577,17.04131335,146.82,146.79,15.44211486]
[1740756586775,6.811,146.85,146.8,15.44211486]
[1740756586972,17.04131335,146.83,146.77,7.1186]
[1740756587173,28.29417565,146.97,146.78,15.43964813]
[1740756587369,17.6,146.96,146.81,0.04876658]
[1740756587574,17.04131335,146.9,146.82,33.03964813]
[1740756587776,17.04131335,146.9,146.86,0.05132291]
[1740756588177,17.04131335,146.9,146.87,6.8098]
[1740756589176,6.8068,146.94,146.86,0.05132291]
[1740756589376,17.04131335,146.91,146.88,6.809]
[1740756589579,17.04131335,146.91,146.89,0.04630181]
[1740756589776,6.8068,146.94,146.84,7.0364]
[1740756589979,17.04131335,146.93,146.91,6.8079]
[1740756590179,17.04131335,146.94,146.91,6.8079]
[1740756590381,28.29417565,146.99,146.91,0.04670377]
[1740756590681,17.04131335,146.97,146.92,22.74448494]
[1740756590878,17.04131335,146.97,146.93,15.41448494]
[1740756591079,28.29417565,146.99,146.95,6.8058]
[1740756591281,217.92,147.05,146.94,0.04305025]
[1740756591583,17.04131335,147.0,146.94,15.41448494]
[1740756591783,17.04131335,147.0,146.98,0.0436735]
[1740756591982,6.8033,147.02,146.98,0.0436735]
[1740756592178,17.04131335,147.0,146.96,6.8057]
[1740756592484,17.04131335,147.0,146.99,0.0454133]
[1740756592684,6.8033,147.02,146.99,0.0454133]
[1740756592882,17.04131335,147.0,146.99,0.0454133]
[1740756594283,28.29417565,147.06,146.99,0.0454133]
[1740756594685,28.29417565,147.06,147.0,6.8038]
[1740756594983,28.29417565,147.13,146.99,0.0454133]
[1740756595177,28.29417565,147.13,146.96,17.58]
[1740756595178,28.29417565,147.13,146.97,15.31907476]
[1740756595481,28.29417565,147.13,147.05,0.04388353]
[1740756595885,221.4662,147.12,147.05,0.04388353]
[1740756596480,6.8006,147.08,147.05,0.04388353]
[1740756596679,221.4662,147.12,147.05,0.04388353]
[1740756597082,6.8011,147.06,147.05,0.04388353]
[1740756597682,6.8035,147.01,146.93,15.31907476]
[1740756597984,17.56,147.03,146.92,7.33]
[1740756598181,7.3263,147.02,146.92,7.33]
[1740756598374,225.1463,147.02,146.92,7.33]
[1740756598881,0.04388353,146.98,146.96,0.04748017]
[1740756599684,6.8053,146.97,146.96,0.04748017]
[1740756600184,0.04388353,146.98,146.96,0.04748017]
[1740756600780,6.84908353,146.98,146.96,0.04748017]
[1740756600978,6.84908353,146.98,146.96,8.017e-05]
[1740756600979,0.04388353,146.98,146.96,8.017e-05]
[1740756601186,0.04388353,146.98,146.89,9.42626282]
[1740756601384,217.82,147.02,146.89,15.31907476]
[1740756601585,217.82,147.02,146.9,15.31907476]
[1740756601784,6.8017,147.05,146.99,6.8043]
[1740756601978,17.56,147.06,146.92,32.87907476]
[1740756602181,0.05168399,147.0,146.98,0.04560052]
[1740756602386,217.8,147.09,146.92,17.56]
[1740756602583,0.04825759,147.0,146.98,0.05100083]
[1740756602778,6.8057,146.97,146.91,6.8079]
[1740756602985,0.04581946,147.0,146.98,0.05139547]
[1740756603291,235.36,146.99,146.88,3.4838]
[1740756603584,235.36,146.99,146.85,9.42626282]
[1740756604490,0.04434837,146.93,146.91,0.04461605]
[1740756604691,235.36,146.99,146.91,0.04461605]
[1740756604992,0.04466483,146.93,146.91,0.04461605]
[1740756605187,0.04839624,146.93,146.91,0.04461605]
[1740756607090,0.04839624,146.93,146.92,6.8076]
[1740756607590,9.624e-05,146.93,146.92,6.8076]
[1740756607792,9.624e-05,146.93,146.92,7.2938]
[1740756608294,9.624e-05,146.93,146.92,14.2687]
[1740756608487,9.624e-05,146.93,146.92,21.0763]
[1740756609592,9.624e-05,146.93,146.92,14.2687]
[1740756609991,9.624e-05,146.93,146.92,21.0763]
[1740756610593,9.624e-05,146.93,146.92,10.8687]
[1740756611189,9.624e-05,146.93,146.91,0.04461605]
[1740756611391,9.624e-05,146.93,146.92,17.56]
[1740756611594,6.8007,147.07,147.01,6.8031]
[1740756611795,217.82,147.13,146.98,17.54]
[1740756611992,7.4273,147.12,146.99,11.0579]
[1740756612298,217.82,147.13,146.99,11.0579]
[1740756612688,6.7994,147.1,146.99,11.0579]
[1740756612893,0.04819527,147.07,147.05,0.04358242]
[1740756613293,217.82,147.13,147.05,0.04358242]
[1740756613494,0.04687656,147.07,147.05,0.04358242]
[1740756613695,6.7988,147.12,147.06,6.801]
[1740756613889,0.05220779,147.07,147.06,3.7777]
[1740756614199,6.7975,147.14,147.07,6.8003]
[1740756614491,28.29417565,147.18,147.07,6.8003]
[1740756614492,28.29417565,147.18,147.07,3.7409]
[1740756614697,28.29417565,147.18,147.12,6.7983]
[1740756614893,28.29417565,147.18,147.11,17.54]
[1740756615295,28.29417565,147.18,147.07,21.2809]
[1740756615508,0.04439224,147.16,147.13,0.04981181]
[1740756615794,6.797,147.15,147.13,0.04981181]
[1740756616189,0.04439224,147.16,147.13,0.04981181]
[1740756616397,6.7974,147.14,147.13,0.04981181]
[1740756617297,6.7974,147.14,147.13,1.181e-05]
[1740756617691,10.1974,147.14,147.13,1.181e-05]
[1740756617894,27.7374,147.14,147.13,1.181e-05]
[1740756618897,6.7974,147.14,147.13,1.181e-05]
[1740756619801,0.04439224,147.16,147.13,1.181e-05]
[1740756620202,6.7974,147.15,147.13,1.181e-05]
[1740756620397,0.04439224,147.16,147.13,1.181e-05]
[1740756621102,6.7974,147.14,147.13,1.181e-05]
[1740756622997,10.1974,147.14,147.13,1.181e-05]
[1740756623592,227.8374,147.14,147.13,1.181e-05]
[1740756624299,224.4374,147.14,147.13,1.181e-05]
[1740756624800,227.8374,147.14,147.13,1.181e-05]
[1740756625995,221.04,147.14,146.99,3.6799]
[1740756626190,2.51508979,147.13,146.96,7.2535]
[1740756626391,191.35943447,147.12,146.92,3.4689]
[1740756626602,6.8052,146.98,146.92,3.4689]
[1740756626993,6.804,147.0,146.92,3.4689]
[1740756627197,0.05100282,146.96,146.94,0.04978736]
[1740756627496,235.16,147.03,146.92,3.4689]
[1740756627691,0.04549838,146.96,146.94,0.05102809]
[1740756628096,235.16,147.03,146.93,6.8071]
[1740756628404,235.16,147.03,146.94,0.04564239]
[1740756628604,0.05153853,146.99,146.92,3.4689]
[1740756628804,0.05153853,146.99,146.97,0.04881497]
[1740756629000,0.05153853,146.99,146.92,10.2762]
[1740756629200,0.05153853,146.99,146.92,3.4689]
[1740756629499,0.05153853,146.99,146.94,0.04823599]
[1740756630501,0.05153853,146.99,146.97,6.8051]
[1740756630702,0.05153853,146.99,146.94,0.04823599]
[1740756631304,0.05153853,146.99,146.95,6.8059]
[1740756631502,0.05153853,146.99,146.94,0.04823599]
[1740756633309,6.85633853,146.99,146.94,0.04823599]
[1740756634105,0.05153853,146.99,146.94,0.04823599]
[1740756634411,0.05153853,146.99,146.95,6.8058]
[1740756634809,0.05153853,146.99,146.94,0.04823599]
[1740756635311,6.85603853,146.99,146.94,0.04823599]
[1740756635811,0.05153853,146.99,146.94,0.04823599]
[1740756636915,6.8055,146.97,146.94,0.04823599]
[1740756637310,6.85603853,146.99,146.94,6.85463599]
[1740756637614,217.74,147.1,146.94,0.04823599]
[1740756637815,242.8467,147.1,146.94,0.04823599]
[1740756638016,6.8023,147.04,146.94,15.11837224]
[1740756638209,242.8467,147.1,146.93,15.11837224]
[1740756638422,242.8467,147.1,146.96,6.8057]
[1740756638714,0.04541043,147.04,147.02,0.05150907]
[1740756638910,242.8467,147.1,147.02,0.05150907]
[1740756639112,6.8025,147.03,147.02,0.05150907]
[1740756640211,0.04496361,147.04,147.02,0.05150907]
[1740756640417,0.04496361,147.04,147.02,6.85450907]
[1740756640721,0.04496361,147.04,147.02,0.05150907]
[1740756641115,0.04496361,147.04,146.92,215.9689]
[1740756641322,6.8051,146.98,146.93,7.4142]
[1740756641825,217.74,147.0,146.89,15.25230703]
[1740756642015,217.74,147.0,146.88,37.71644158]
[1740756642515,0.05124322,146.95,146.93,0.04481438]
[1740756642723,217.74,147.0,146.93,0.04481438]
[1740756643020,0.0461087,146.95,146.93,0.04481438]
[1740756643220,217.74,147.0,146.93,0.04481438]
[1740756643422,6.8063,146.95,146.93,0.04481438]
[1740756643614,0.04360486,146.98,146.93,0.04481438]
[1740756643818,0.04360486,146.98,146.88,37.71644158]
[1740756643819,17.5,146.97,146.88,37.71644158]
[1740756644120,6.8079,146.92,146.88,37.71644158]
[1740756644321,17.5,146.97,146.88,37.71644158]
[1740756644524,24.3054,146.97,146.88,37.71644158]
[1740756644723,217.74,147.0,146.86,32.75230703]
[1740756645019,0.04432303,146.94,146.91,0.05048963]
[1740756645318,17.5,147.06,146.92,17.5]
[1740756645519,6.8035,147.01,146.93,7.3745]
[1740756646014,268.1695753,147.07,146.93,7.3745]
[1740756646220,0.04846431,147.01,146.99,0.04737023]
[1740756646417,75.45113508,147.14,146.99,17.54737023]
[1740756646716,75.45113508,147.14,146.99,212.5]
[1740756646910,75.45113508,147.14,147.0,3.5557]
[1740756647319,75.45113508,147.14,147.06,6.801]
[1740756647622,0.04894654,147.07,147.06,6.801]
[1740756647818,75.45113508,147.14,147.06,10.201]
[1740756648024,75.45113508,147.14,147.05,17.54717668]
[1740756648025,75.45113508,147.14,147.07,6.8005]
[1740756648219,75.45113508,147.14,147.05,0.04717668]
[1740756648517,6.7989,147.11,147.0,27.8593]
[1740756648721,3.6829,147.14,147.0,21.0557]
[1740756648923,3.6829,147.14,147.04,0.04360987]
[1740756649611,3.6829,147.14,147.04,6.84560987]
[1740756649817,3.6829,147.14,147.04,0.04360987]
[1740756650528,3.6829,147.14,147.01,3.4522]
[1740756650725,3.6829,147.14,147.08,0.05078592]
[1740756651123,6.7984,147.12,147.08,0.05078592]
[1740756651424,3.6829,147.14,147.08,0.05078592]
[1740756652223,10.4807,147.14,147.08,0.05078592]
[1740756652623,3.6829,147.14,147.08,0.05078592]
[1740756654224,3.6829,147.14,147.02,0.72736]
[1740756654419,0.04451991,147.12,147.02,0.72736]
[1740756654724,3.6829,147.14,147.02,0.72736]
[1740756655432,0.04605541,147.09,147.07,0.04882437]
[1740756655624,3.6829,147.14,147.07,0.04882437]
[1740756655826,0.0446924,147.09,147.07,0.04882437]
[1740756656127,0.04449216,147.09,147.07,0.04882437]
[1740756656826,0.04449216,147.09,147.07,6.84932437]
[1740756657026,0.04449216,147.09,147.07,0.04882437]
[1740756657429,0.04449216,147.09,147.08,6.8002]
[1740756657630,0.04449216,147.09,147.07,0.04882437]
[1740756660027,0.04449216,147.09,147.08,6.8002]
[1740756661133,217.76,147.15,147.07,0.04882437]
[1740756661334,3.5602,147.21,147.07,17.50882437]
[1740756661632,224.8933,147.24,147.08,15.25230703]
[1740756661834,217.66,147.24,147.08,195.0]
[1740756662131,6.7931,147.24,147.09,3.637]
[1740756662332,28.29417565,147.25,147.18,6.7954]
[1740756662528,6.7932,147.24,147.15,17.46]
[1740756662733,28.29417565,147.25,147.2,0.04872283]
[1740756663031,35.08667565,147.25,147.2,0.04872283]
[1740756663232,28.29417565,147.25,147.2,0.04872283]
[1740756663632,3.5346,147.28,147.2,0.04872283]
[1740756664034,6.7934,147.23,147.2,0.04872283]
[1740756664426,3.5346,147.28,147.2,0.04872283]
[1740756665032,6.7932,147.24,147.2,0.04872283]
[1740756665331,3.5346,147.28,147.2,0.04872283]
[1740756666238,6.7932,147.24,147.2,0.04872283]
[1740756666435,3.5346,147.28,147.2,0.04872283]
[1740756666633,28.29417565,147.33,147.21,17.44]
[1740756666829,6.7902,147.3,147.22,10.8719]
[1740756667140,28.29417565,147.33,147.26,0.04791223]
[1740756667437,7.4867,147.36,147.26,0.04791223]
[1740756667738,7.4867,147.36,147.22,10.8719]
[1740756668040,217.56,147.4,147.3,0.04572858]
[1740756668237,217.56,147.4,147.27,17.44]
[1740756668436,6.7864,147.38,147.27,17.44]
[1740756668636,28.29417565,147.42,147.34,0.04652991]
[1740756668839,28.29417565,147.42,147.35,17.44]
[1740756669134,11.14707565,147.42,147.37,0.04324728]
[1740756669438,58.30253508,147.43,147.42,6.7845]
[1740756669628,1.33740494,147.43,147.42,10.1845]
[1740756669835,100.47247061,147.44,147.42,3.4]
[1740756670032,63.39207061,147.44,147.42,3.4]
[1740756670232,26.45067061,147.44,147.43,6.7841]
[1740756670433,15.23497061,147.44,147.43,6.7841]
[1740756670631,15.23497061,147.44,147.43,10.1841]
[1740756670834,232.42854171,147.47,147.43,3.4]
[1740756671230,232.42854171,147.47,147.41,17.48937192]
[1740756671539,6.19689361,147.46,147.44,6.7834]
[1740756671738,221.94283532,147.47,147.44,217.36]
[1740756672342,189.01103532,147.47,147.44,220.80935484]
[1740756672643,74.30323402,147.63,147.44,217.40935484]
[1740756672839,13.56,147.59,147.44,217.40935484]
[1740756673044,13.56,147.59,147.44,217.36]
[1740756673240,13.56,147.58,147.5,0.05192059]
[1740756673444,13.56,147.58,147.51,17.42]
[1740756673740,13.56,147.53,147.43,17.42]
[1740756673943,20.3388,147.55,147.53,0.04851586]
[1740756674144,13.56,147.55,147.43,212.42]
[1740756674343,13.56,147.55,147.53,0.0467874]
[1740756674539,13.56,147.54,147.43,212.42]
[1740756674845,13.56,147.54,147.36,130.2299]
[1740756674846,13.56,147.48,147.39,17.42]
[1740756675142,74.6018,147.48,147.47,0.04321564]
[1740756675343,81.38,147.48,147.45,66.78335696]
[1740756675539,6.7822,147.47,147.46,0.04526583]
[1740756675942,7.3168,147.53,147.46,0.04526583]
[1740756676244,105.46355504,147.53,147.46,0.04526583]
[1740756676444,13.56,147.49,147.46,0.04526583]
[1740756676642,81.38,147.47,147.46,0.04526583]
[1740756676847,99.34791437,147.47,147.46,6.583e-05]
[1740756677050,3.7434,147.53,147.46,6.583e-05]
[1740756677342,58.66555933,147.5,147.46,6.583e-05]
[1740756677543,37.64355504,147.53,147.46,76.97138267]
[1740756677850,65.44775933,147.47,147.46,76.97138267]
[1740756678152,52.01899822,147.47,147.46,76.97138267]
[1740756679045,0.05149376,147.48,147.46,76.97138267]
[1740756679346,0.05149376,147.48,147.46,6.583e-05]
[1740756679951,3.7434,147.53,147.46,6.583e-05]
[1740756680140,6.7814,147.49,147.46,6.583e-05]
[1740756680346,48.98019822,147.53,147.46,6.583e-05]
[1740756680762,55.76009822,147.53,147.47,17.4]
[1740756680945,48.98019822,147.53,147.47,17.4]
[1740756681141,37.64355504,147.53,147.47,17.4]
[1740756681341,11.33664318,147.5,147.47,17.4]
[1740756681851,3.7434,147.53,147.47,17.4]
[1740756682154,11.33664318,147.52,147.47,17.4]
[1740756682754,3.7434,147.53,147.47,17.4]
[1740756682949,3.6382,147.57,147.5,6.7804]
[1740756683152,3.5668,147.6,147.5,195.0]
[1740756683352,11.33664318,147.58,147.5,195.0]
[1740756683647,217.1,147.72,147.54,0.04610964]
[1740756683852,11.33664318,147.63,147.55,17.38]
[1740756684145,11.33664318,147.65,147.62,0.04789793]
[1740756684345,7.363,147.71,147.63,17.38]
[1740756684346,11.33664318,147.68,147.63,17.38]
[1740756684752,7.363,147.71,147.63,17.38]
[1740756685052,3.5613,147.71,147.63,17.38]
[1740756685246,190.0,148.01,147.66,0.04879103]
[1740756685454,11.33664318,147.73,147.66,0.04879103]
[1740756685645,7.4494,147.85,147.47,75.55074005]
[1740756685646,7.4494,147.85,147.67,17.38]
[1740756685851,7.4494,147.85,147.68,17.42804969]
[1740756685852,11.33664318,147.77,147.68,17.42804969]
[1740756686151,11.33664318,147.79,147.71,0.05037135]
[1740756686347,11.33664318,147.82,147.71,0.05037135]
[1740756686545,41.34955504,147.85,147.68,17.38]
[1740756686750,11.33664318,147.81,147.75,0.04306323]
[1740756686948,11.33664318,147.82,147.76,17.38]
[1740756687148,15.00394318,147.85,147.77,17.38]
[1740756687350,15.00394318,147.85,147.78,0.0464301]
[1740756687546,37.56745504,147.85,147.78,0.0464301]
[1740756687751,11.33664318,147.81,147.78,0.0464301]
[1740756687951,11.33664318,147.82,147.78,0.0464301]
[1740756688259,37.26745504,147.85,147.78,0.0464301]
[1740756688450,11.33664318,147.84,147.78,0.0464301]
[1740756688646,37.26745504,147.85,147.78,0.0464301]
[1740756688852,11.33664318,147.82,147.78,0.0464301]
[1740756689053,11.33664318,147.81,147.78,0.0464301]
[1740756689252,3.3673,147.85,147.78,0.0464301]
[1740756689448,37.26745504,147.85,147.78,0.0464301]
[1740756689654,11.33664318,147.81,147.78,0.0464301]
[1740756689853,11.33664318,147.8,147.78,0.0464301]
[1740756690353,3.3673,147.85,147.78,0.0464301]
[1740756690655,11.33664318,147.8,147.78,0.0464301]
[1740756690856,11.33664318,147.84,147.78,0.0464301]
[1740756691052,11.33664318,147.83,147.79,17.36]
[1740756691256,33.90015504,147.85,147.79,17.36]
[1740756691457,11.33664318,147.82,147.79,17.36]
[1740756691654,11.33664318,147.82,147.78,0.0464301]
[1740756691956,3.7821,147.88,147.78,0.0464301]
[1740756692157,11.33664318,147.86,147.77,17.36]
[1740756692356,11.33664318,147.86,147.82,0.04771249]
[1740756692656,6.7617,147.92,147.82,0.04771249]
[1740756692852,11.33664318,147.88,147.82,0.04771249]
[1740756693055,11.33664318,147.86,147.82,0.04771249]
[1740756693254,11.33664318,147.84,147.82,0.04771249]
[1740756693454,10.8795,147.89,147.82,0.04771249]
[1740756693650,11.33664318,147.83,147.82,0.04771249]
[1740756693960,11.33664318,147.83,147.73,195.0]
[1740756694257,11.33664318,147.79,147.73,195.0]
[1740756694450,11.33664318,147.75,147.68,212.36]
[1740756694652,11.33664318,147.74,147.59,411.76]
[1740756694856,0.04651507,147.68,147.65,0.04443473]